[Event "Asian Amateur Rapid 2024"]
[Site "Al Ain"]
[Date "2024.12.15"]
[Round "4.9"]
[White "Saqar Essa Khamis"]
[Black "Daneshpour, S.A."]
[Result "1-0"]
[ECO "C40"]
[WhiteElo "1684"]
[BlackElo "1899"]
[Annotator "NA COMBH"]
[PlyCount "99"]
[EventDate "2024.12.15"]
[EventType "swiss"]
[EventCountry "UAE"]
[SourceTitle "playchess.com"]
[Source "ChessBase"]
[SourceQuality "1"]
[TimeControl "900+10"]

1. e4 {[%emt 0:00:03]} e5 {[%emt 0:00:00]} 2. Nf3 {[%emt 0:00:00]} d5 {[%emt 0:00:01]} 3. exd5 {[%emt 0:00:35]} e4 {[%emt 0:00:01]} 4. Qe2 {[%emt 0:00:25]} Nf6 {[%emt 0:00:02]} 5. Nc3 {[%emt 0:00:16]} Be7 {[%emt 0:00:02]} 6. Nxe4 {[%emt 0:00:22]} O-O {[%emt 0:00:02] C40: Latvian and Elephant Gambits.} 7. d3 {[%emt 0:00:50]} Qxd5 {[%emt 0:00:08]} 8. Bd2 {[%emt 0:00:05]} Nc6 {[%emt 0:00:07]} 9. Bc3 {[%emt 0:00:33]} Bg4 {[%emt 0:00:36]} 10. h3 {[%emt 0:00:36]} Bh5 {[%emt 0:00:56]} 11. g4 {[%emt 0:01:44]} Bg6 {[%emt 0:00:01]} 12. Nfd2 {[%emt 0:00:08]} Nd4 {[%emt 0:00:43]} 13. Bxd4 {[%emt 0:00:43]} Qxd4 {[%emt 0:00:02]} 14. O-O-O {[%emt 0:00:26]} Nd5 {[%emt 0:01:11]} 15. Nb3 {[%emt 0:00:48]} Qa4 {[%emt 0:00:13]} 16. Kb1 {[%emt 0:00:04]} f5 {[%emt 0:01:17]} 17. Ng3 {[%emt 0:01:28]} f4 {[%emt 0:01:42]} 18. Nf5 {[%emt 0:00:55]} Bxf5 {[%emt 0:02:04]} 19. gxf5 {[%emt 0:00:03]} Qd7 {[%emt 0:01:24]} 20. Bg2 {[%emt 0:00:19]} Rae8 {[%emt 0:00:36]} 21. Be4 {[%emt 0:00:29]} Bf6 {[%emt 0:00:43]} 22. Qg4 {[%emt 0:00:48]} Qd6 {[%emt 0:00:15]} 23. Bxd5+ {[%emt 0:00:43]} Qxd5 {[%emt 0:00:03]} 24. Qxf4 {[%emt 0:00:26]} Kh8 {[%emt 0:00:51]} 25. Rhe1 {[%emt 0:00:28]} c5 {[%emt 0:01:36]} 26. Re4 {[%emt 0:00:33]} Re5 {[%emt 0:01:34]} 27. Rxe5 {[%emt 0:00:43]} Bxe5 {[%emt 0:00:04]} 28. Qe4 {[%emt 0:00:23]} Qd6 {[%emt 0:00:21]} 29. Re1 {[%emt 0:00:10]} Bf6 {[%emt 0:00:25]} 30. Qxb7 {[%emt 0:00:41]} h6 {[%emt 0:00:32]} 31. Qxa7 {[%emt 0:01:07]} c4 {[%emt 0:00:57]} 32. dxc4 {[%emt 0:00:46]} Rd8 {[%emt 0:00:16]} 33. a3 {[%emt 0:00:32]} Qf4 {[%emt 0:00:08]} 34. Qc5 {[%emt 0:00:24]} Kh7 {[%emt 0:00:20]} 35. a4 {[%emt 0:00:27]} Qb8 {[%emt 0:00:28]} 36. a5 {[%emt 0:00:13]} Rc8 {[%emt 0:00:02]} 37. Qb5 {[%emt 0:00:03]} Qa8 {[%emt 0:00:21]} 38. a6 {[%emt 0:00:15]} Rb8 {[%emt 0:00:01]} 39. Qa4 {[%emt 0:00:10]} Qa7 {[%emt 0:00:10]} 40. Rd1 {[%emt 0:00:10]} Qxf2 {[%emt 0:00:16]} 41. a7 {[%emt 0:00:32]} Ra8 {[%emt 0:00:01]} 42. c5 {[%emt 0:00:06]} Qe2 {[%emt 0:00:21]} 43. Rd2 {[%emt 0:00:31]} Qe1+ {[%emt 0:00:17]} 44. Ka2 {[%emt 0:00:01]} Qe5 {[%emt 0:00:02]} 45. c3 {[%emt 0:00:14]} Qc7 $18 {[%emt 0:00:07]} 46. Rd7 {[%emt 0:00:04]} Qh2 {[%emt 0:00:31]} 47. Qc4 {[%emt 0:00:23]} Qxh3 {[%emt 0:00:42]} 48. Qe4 {[%emt 0:00:20]} Bxc3 {[%emt 0:00:27]} 49. bxc3 {[%emt 0:00:16]} Qg2+ {[%emt 0:00:01] Check Result:#3} 50. Qxg2 {[%emt 0:00:02]} 1-0

[Event "Asian Amateur Rapid 2024"]
[Site "Al Ain"]
[Date "2024.12.15"]
[Round "4.10"]
[White "Khalifah, Khaled"]
[Black "Saket Atul Kumar"]
[Result "1-0"]
[ECO "D27"]
[WhiteElo "1962"]
[BlackElo "1633"]
[Annotator "RC"]
[PlyCount "155"]
[EventDate "2024.12.15"]
[EventType "swiss"]
[EventCountry "UAE"]
[SourceTitle "playchess.com"]
[Source "ChessBase"]
[SourceQuality "1"]
[TimeControl "900+10"]

1. d4 {[%emt 0:00:01]} d5 {[%emt 0:00:00]} 2. c4 {[%emt 0:00:01]} dxc4 {[%emt 0:00:02]} 3. e3 {[%emt 0:00:02]} Nf6 {[%emt 0:00:02]} 4. Bxc4 {[%emt 0:00:01]} e6 {[%emt 0:00:01]} 5. Nf3 {[%emt 0:00:02]} c5 {[%emt 0:00:01]} 6. O-O {[%emt 0:00:02]} a6 {[%emt 0:00:01]} 7. a4 {[%emt 0:00:05]} cxd4 {[%emt 0:00:01]} 8. Qxd4 {[%emt 0:00:03]} Qxd4 {[%emt 0:00:05]} 9. Nxd4 {[%emt 0:00:01]} Bd7 {[%emt 0:00:01]} 10. b3 {[%emt 0:00:03]} Nc6 {[%emt 0:00:00]} 11. Bb2 {[%emt 0:00:01]} Bc5 {[%emt 0:00:04]} 12. Nxc6 {[%emt 0:00:24]} Bxc6 {[%emt 0:00:02]} 13. Nc3 {[%emt 0:00:01]} Rd8 {[%emt 0:00:17]} 14. Rad1 {[%emt 0:00:03]} Ke7 {[%emt 0:00:01]} 15. h3 {[%emt 0:00:07]} g5 {[%emt 0:00:09]} 16. Ne2 {[%emt 0:00:05]} Rhg8 {[%emt 0:00:11]} 17. Ng3 {[%emt 0:00:15]} h5 {[%emt 0:00:08]} 18. Bxf6+ {[%emt 0:00:02]} Kxf6 {[%emt 0:00:05]} 19. Nxh5+ {[%emt 0:00:02]} Ke7 {[%emt 0:00:04]} 20. Ng3 {[%emt 0:00:00]} g4 {[%emt 0:00:01]} 21. hxg4 {[%emt 0:00:03]} Rxg4 {[%emt 0:00:01]} 22. Rxd8 {[%emt 0:00:01]} Kxd8 {[%emt 0:00:02]} 23. Rd1+ {[%emt 0:00:15]} Ke7 {[%emt 0:00:02]} 24. Be2 {[%emt 0:00:15]} Rg8 {[%emt 0:00:12]} 25. Bf3 {[%emt 0:00:24]} Bxf3 {[%emt 0:00:09]} 26. gxf3 {[%emt 0:00:02]} Bxe3 {[%emt 0:00:02]} 27. fxe3 {[%emt 0:00:06]} Rxg3+ {[%emt 0:00:01]} 28. Kf2 {[%emt 0:00:01]} Rh3 {[%emt 0:00:10]} 29. Kg2 {[%emt 0:00:02]} Rh5 {[%emt 0:00:05]} 30. Rc1 {[%emt 0:00:02]} Kd7 {[%emt 0:00:01]} 31. Kg3 {[%emt 0:00:19]} Rd5 {[%emt 0:00:01]} 32. Rc3 {[%emt 0:00:01]} Kd6 {[%emt 0:00:08]} 33. e4 {[%emt 0:00:01]} Rd2 {[%emt 0:00:02]} 34. Kf4 {[%emt 0:00:01]} Rb2 {[%emt 0:00:15]} 35. Ke3 {[%emt 0:00:10]} b6 {[%emt 0:00:01]} 36. Kd4 {[%emt 0:00:18]} b5 {[%emt 0:00:17]} 37. axb5 {[%emt 0:00:04]} axb5 {[%emt 0:00:01]} 38. Rd3 {[%emt 0:00:01]} Kc6 {[%emt 0:00:26]} 39. f4 {[%emt 0:03:53]} f6 {[%emt 0:00:16]} 40. e5 {[%emt 0:02:47]} f5 {[%emt 0:01:17]} 41. Kc3 {[%emt 0:00:15]} Rf2 {[%emt 0:00:08]} 42. Rd6+ {[%emt 0:00:02]} Kc7 {[%emt 0:00:06]} 43. Kb4 {[%emt 0:01:54]} Rxf4+ {[%emt 0:02:44]} 44. Kxb5 {[%emt 0:00:01]} Re4 {[%emt 0:00:09]} 45. Rxe6 {[%emt 0:00:01]} f4 {[%emt 0:00:01]} 46. Kc5 {[%emt 0:00:08]} f3 {[%emt 0:00:05]} 47. Kd5 {[%emt 0:00:29]} Rf4 {[%emt 0:00:03]} 48. Rc6+ {[%emt 0:00:06]} Kd7 {[%emt 0:00:05]} 49. e6+ {[%emt 0:01:16]} Ke7 {[%emt 0:00:12]} 50. Rc7+ {[%emt 0:00:06]} Ke8 {[%emt 0:00:29]} 51. Kd6 {[%emt 0:01:46]} Rd4+ {[%emt 0:00:23]} 52. Ke5 {[%emt 0:00:01]} f2 {[%emt 0:00:45]} 53. Rf7 {[%emt 0:00:25]} Rd2 {[%emt 0:00:40]} 54. b4 {[%emt 0:00:10]} Re2+ {[%emt 0:00:01]} 55. Kd6 {[%emt 0:00:02]} Rd2+ {[%emt 0:00:01]} 56. Kc5 {[%emt 0:01:21]} Rc2+ {[%emt 0:00:06]} 57. Kd5 {[%emt 0:00:51]} Rb2 {[%emt 0:00:18]} 58. Kc4 {[%emt 0:00:18]} Rc2+ {[%emt 0:00:06]} 59. Kb3 {[%emt 0:00:15]} Re2 {[%emt 0:00:07]} 60. b5 {[%emt 0:00:02]} Rxe6 {[%emt 0:00:15]} 61. Rxf2 {[%emt 0:00:04]} Re4 {[%emt 0:00:10]} 62. Rd2 {[%emt 0:00:01]} Ke7 {[%emt 0:00:06]} 63. Kc3 {[%emt 0:00:18]} Ke8 {[%emt 0:00:08]} 64. Rd1 {[%emt 0:03:39]} Ke7 {[%emt 0:00:20]} 65. Rd5 {[%emt 0:00:01]} Ke6 {[%emt 0:00:11]} 66. Rd2 {[%emt 0:00:32]} Ke7 {[%emt 0:00:11]} 67. Rd5 {[%emt 0:01:55]} Ke6 {[%emt 0:00:04]} 68. Rd8 {[%emt 0:00:02]} Ke7 {[%emt 0:00:03]} 69. Rd2 {[%emt 0:00:06]} Ke6 {[%emt 0:00:07]} 70. Kb3 {[%emt 0:00:19]} Ke7 {[%emt 0:00:06]} 71. Ka3 {[%emt 0:00:08]} Ke6 {[%emt 0:00:03]} 72. b6 {[%emt 0:00:03]} Rh4 {[%emt 0:00:37]} 73. b7 {[%emt 0:00:15]} Rh8 {[%emt 0:00:03]} 74. Ka4 {[%emt 0:00:03]} Rb8 {[%emt 0:00:02]} 75. Rb2 {[%emt 0:00:01]} Kd7 {[%emt 0:00:15]} 76. Ka5 {[%emt 0:00:01]} Kc7 {[%emt 0:00:06]} 77. Ka6 {[%emt 0:00:01]} Rd8 {[%emt 0:04:19]} 78. Ka7 {[%emt 0:00:01]} 1-0

[Event "Asian Amateur Rapid 2024"]
[Site "Al Ain"]
[Date "2024.12.15"]
[Round "4.11"]
[White "Ahsan Feroz"]
[Black "Chekanov, Timur"]
[Result "0-1"]
[ECO "D11"]
[WhiteElo "1795"]
[BlackElo "1865"]
[Annotator "NA COMBH"]
[PlyCount "58"]
[EventDate "2024.12.15"]
[EventType "swiss"]
[EventCountry "UAE"]
[SourceTitle "playchess.com"]
[Source "ChessBase"]
[SourceQuality "1"]
[TimeControl "900+10"]

1. d4 {[%emt 0:00:01]} d5 {[%emt 0:00:01]} 2. c4 {[%emt 0:00:01]} c6 {[%emt 0:00:00]} 3. Nf3 {[%emt 0:00:01]} Nf6 {[%emt 0:00:02]} 4. g3 {[%emt 0:00:01]} Bf5 {[%emt 0:01:04]} 5. Bg2 {[%emt 0:00:03]} e6 {[%emt 0:00:01]} 6. O-O {[%emt 0:00:02]} Nbd7 {[%emt 0:00:42]} 7. Nbd2 {[%emt 0:00:31]} h6 {[%emt 0:00:24]} 8. Re1 {[%emt 0:00:33]} Be7 {[%emt 0:00:17] D11: Slav Defence: 3 Nf3 sidelines and 3...Nf6 4 e3 Bg4.} 9. Qb3 {[%emt 0:00:04]} Qb6 {[%emt 0:00:07]} 10. c5 {[%emt 0:00:01]} Qxb3 {[%emt 0:02:11]} 11. Nxb3 {[%emt 0:00:25]} b6 {[%emt 0:00:16]} 12. cxb6 {[%emt 0:00:53]} axb6 {[%emt 0:00:01]} 13. Bf4 {[%emt 0:00:18]} O-O {[%emt 0:00:44]} 14. Rec1 {[%emt 0:00:26]} c5 {[%emt 0:01:52]} 15. dxc5 {[%emt 0:00:08]} bxc5 {[%emt 0:00:01]} 16. a4 {[%emt 0:03:40]} Nh5 {[%emt 0:00:36]} 17. Ne5 {[%emt 0:02:04]} Nxf4 {[%emt 0:01:27]} 18. gxf4 {[%emt 0:00:01]} Nxe5 {[%emt 0:00:06]} 19. fxe5 {[%emt 0:00:02]} Rfc8 $15 {[%emt 0:00:05]} (19... Rfb8 $17 20. Rc3 c4) 20. e4 {[%emt 0:01:19]} dxe4 {[%emt 0:00:57]} 21. Nd2 {[%emt 0:08:06]} Bg5 {[%emt 0:07:46]} 22. Rd1 {[%emt 0:00:00]} Bxd2 {[%emt 0:00:00]} 23. Rxd2 {[%emt 0:00:00]} Ra5 {[%emt 0:00:00]} 24. Re2 {[%emt 0:00:00]} Rb8 {[%emt 0:00:00]} 25. Bxe4 {[%emt 0:00:00]} Bxe4 {[%emt 0:00:00]} 26. Rxe4 {[%emt 0:00:00]} Rxb2 {[%emt 0:00:00]} 27. Rc1 {[%emt 0:00:00]} Rb4 {[%emt 0:00:00]} 28. Rxc5 {[%emt 0:00:00]} Rb1+ {[%emt 0:00:00]} 29. Kg2 {[%emt 0:00:00] Check Result:-9.42} Rxc5 {[%emt 0:00:00]} 0-1

[Event "Asian Amateur Rapid 2024"]
[Site "Al Ain"]
[Date "2024.12.15"]
[Round "4.12"]
[White "Alviz, Joshua Ezekiel"]
[Black "Umarov, Mukhammadrizo"]
[Result "1/2-1/2"]
[ECO "C01"]
[WhiteElo "1766"]
[BlackElo "1902"]
[Annotator "RC"]
[PlyCount "106"]
[EventDate "2024.12.15"]
[EventType "swiss"]
[EventCountry "UAE"]
[SourceTitle "playchess.com"]
[Source "ChessBase"]
[SourceQuality "1"]
[TimeControl "900+10"]

1. e4 {[%emt 0:00:03]} e6 {[%emt 0:00:01]} 2. d4 {[%emt 0:00:01]} d5 {[%emt 0:00:02]} 3. exd5 {[%emt 0:00:01]} exd5 {[%emt 0:00:01]} 4. Nf3 {[%emt 0:00:01]} Nc6 {[%emt 0:00:02]} 5. Bb5 {[%emt 0:01:13]} Bd6 {[%emt 0:00:15]} 6. O-O {[%emt 0:00:06]} Nge7 {[%emt 0:00:02]} 7. Re1 {[%emt 0:00:22]} O-O {[%emt 0:00:06]} 8. c4 {[%emt 0:00:05]} dxc4 {[%emt 0:00:04]} 9. Bxc4 {[%emt 0:00:02]} Bg4 {[%emt 0:00:14]} 10. Be3 {[%emt 0:00:35]} Nf5 {[%emt 0:00:26]} 11. Be2 {[%emt 0:01:10]} Bxf3 {[%emt 0:03:10]} 12. Bxf3 {[%emt 0:00:03]} Nfxd4 {[%emt 0:00:08]} 13. Nc3 {[%emt 0:01:37]} Qh4 {[%emt 0:02:09]} 14. g3 {[%emt 0:00:13]} Nxf3+ {[%emt 0:00:01]} 15. Qxf3 {[%emt 0:00:01]} Qb4 {[%emt 0:00:03]} 16. Rab1 {[%emt 0:01:32]} Ne5 {[%emt 0:00:19]} 17. Qh5 {[%emt 0:00:52]} Qg4 {[%emt 0:02:11]} 18. Qxg4 {[%emt 0:00:05]} Nxg4 {[%emt 0:00:01]} 19. Bd4 {[%emt 0:02:22]} Rfe8 {[%emt 0:01:09]} 20. Nb5 {[%emt 0:00:17]} a6 {[%emt 0:00:11]} 21. Nxd6 {[%emt 0:00:12]} cxd6 {[%emt 0:00:01]} 22. h3 {[%emt 0:00:32]} Nh6 {[%emt 0:00:45]} 23. g4 {[%emt 0:00:18]} f5 {[%emt 0:00:02]} 24. g5 {[%emt 0:00:54]} Nf7 {[%emt 0:00:01]} 25. f4 {[%emt 0:00:40]} Nh8 {[%emt 0:00:08]} 26. Kf2 {[%emt 0:00:15]} Ng6 {[%emt 0:00:20]} 27. Kg3 {[%emt 0:00:05]} Kf7 {[%emt 0:00:25]} 28. h4 {[%emt 0:00:23]} Rxe1 {[%emt 0:00:10]} 29. Rxe1 {[%emt 0:00:02]} Rc8 {[%emt 0:00:02]} 30. h5 {[%emt 0:00:14]} Nf8 {[%emt 0:00:01]} 31. Bc3 {[%emt 0:01:42]} g6 {[%emt 0:00:54]} 32. hxg6+ {[%emt 0:00:42]} hxg6 {[%emt 0:00:03]} 33. Rd1 {[%emt 0:00:13]} Rc6 {[%emt 0:00:25]} 34. Rh1 {[%emt 0:00:05]} Rc4 {[%emt 0:00:14]} 35. Rd1 {[%emt 0:00:08]} Ne6 {[%emt 0:00:26]} 36. Rxd6 {[%emt 0:00:27]} Nxf4 {[%emt 0:00:07]} 37. Rd7+ {[%emt 0:00:11]} Ke6 {[%emt 0:00:01]} 38. Rxb7 {[%emt 0:00:11]} Ne2+ {[%emt 0:00:02]} 39. Kf2 {[%emt 0:00:12]} Nxc3 {[%emt 0:00:12]} 40. Rb6+ {[%emt 0:00:08]} Ke5 {[%emt 0:00:17]} 41. bxc3 {[%emt 0:00:06]} Kf4 {[%emt 0:00:42]} 42. Rxg6 {[%emt 0:00:42]} Ra4 {[%emt 0:00:01]} 43. Ke2 {[%emt 0:00:32]} Rxa2+ {[%emt 0:00:34]} 44. Kd3 {[%emt 0:00:02]} Rg2 {[%emt 0:01:24]} 45. Rxa6 {[%emt 0:00:02]} Rxg5 {[%emt 0:00:02]} 46. c4 {[%emt 0:00:23]} Rg3+ {[%emt 0:00:37]} 47. Kd4 {[%emt 0:00:08]} Rg1 {[%emt 0:00:25]} 48. Kd5 {[%emt 0:00:26]} Rd1+ {[%emt 0:00:13]} 49. Ke6 {[%emt 0:00:15]} Re1+ {[%emt 0:00:53]} 50. Kd6 {[%emt 0:00:26]} Rd1+ {[%emt 0:00:06]} 51. Ke6 {[%emt 0:00:01]} Rc1 {[%emt 0:00:24]} 52. Ra5 {[%emt 0:00:11]} Rxc4 {[%emt 0:01:45]} 53. Rxf5+ {[%emt 0:00:02]} Ke4 {[%emt 0:00:13]} 1/2-1/2

[Event "Asian Amateur Rapid 2024"]
[Site "Al Ain"]
[Date "2024.12.15"]
[Round "4.13"]
[White "Manuwaruna, Sethun Neththaru"]
[Black "Fedorov, Grigory"]
[Result "1/2-1/2"]
[ECO "B25"]
[WhiteElo "1933"]
[BlackElo "1916"]
[Annotator "RC"]
[PlyCount "134"]
[EventDate "2024.12.15"]
[EventType "swiss"]
[EventCountry "UAE"]
[SourceTitle "playchess.com"]
[Source "ChessBase"]
[SourceQuality "1"]
[TimeControl "900+10"]

1. Nf3 {[%emt 0:00:02]} Nf6 {[%emt 0:00:03]} 2. g3 {[%emt 0:00:01]} g6 {[%emt 0:00:01]} 3. Bg2 {[%emt 0:00:01]} Bg7 {[%emt 0:00:02]} 4. d3 {[%emt 0:00:02]} O-O {[%emt 0:00:12]} 5. e4 {[%emt 0:00:11]} d6 {[%emt 0:00:03]} 6. O-O {[%emt 0:00:02]} c5 {[%emt 0:00:01]} 7. Nc3 {[%emt 0:00:18]} Nc6 {[%emt 0:00:02]} 8. h3 {[%emt 0:00:14]} Rb8 {[%emt 0:00:17]} 9. Be3 {[%emt 0:00:24]} b5 {[%emt 0:00:21]} 10. Ne2 {[%emt 0:00:18]} b4 {[%emt 0:02:30]} 11. Ne1 {[%emt 0:01:29]} Qb6 {[%emt 0:01:24]} 12. f4 {[%emt 0:00:54]} Nd4 {[%emt 0:00:28]} 13. Nf3 {[%emt 0:01:50]} Nxe2+ {[%emt 0:00:34]} 14. Qxe2 {[%emt 0:00:02]} Nh5 {[%emt 0:00:07]} 15. Qf2 {[%emt 0:01:04]} Bxb2 {[%emt 0:00:03]} 16. Rab1 {[%emt 0:00:59]} Bc3 {[%emt 0:00:33]} 17. d4 {[%emt 0:01:56]} cxd4 {[%emt 0:01:12]} 18. Nxd4 {[%emt 0:00:06]} Qa6 {[%emt 0:01:16]} 19. e5 {[%emt 0:00:44]} Bb7 {[%emt 0:00:49]} 20. Bxb7 {[%emt 0:00:42]} Rxb7 {[%emt 0:00:18]} 21. g4 {[%emt 0:01:29]} Ng7 {[%emt 0:00:51]} 22. exd6 {[%emt 0:00:08]} Qxd6 {[%emt 0:00:33]} 23. Ne2 {[%emt 0:00:41]} Bd2 {[%emt 0:01:14]} 24. Bc5 {[%emt 0:01:04]} Qc6 {[%emt 0:01:26]} 25. Rfd1 {[%emt 0:00:07]} Ne6 {[%emt 0:01:04]} 26. Bxa7 {[%emt 0:01:31]} Rxa7 {[%emt 0:01:48]} 27. Qxa7 {[%emt 0:00:26]} Bxf4 {[%emt 0:01:24]} 28. Qf2 {[%emt 0:00:43]} Bd6 {[%emt 0:00:19]} 29. Qg2 {[%emt 0:00:40]} Bc5+ {[%emt 0:00:04]} 30. Kh1 {[%emt 0:00:09]} Qa4 {[%emt 0:00:12]} 31. c3 {[%emt 0:00:21]} Rb8 {[%emt 0:00:43]} 32. Nd4 {[%emt 0:00:39]} Nf4 {[%emt 0:00:13]} 33. Qf3 {[%emt 0:00:11]} e5 {[%emt 0:00:02]} 34. Nc6 {[%emt 0:00:13]} Re8 {[%emt 0:00:16]} 35. cxb4 {[%emt 0:00:16]} Bb6 {[%emt 0:00:16]} 36. Rd2 {[%emt 0:00:31]} e4 {[%emt 0:00:05]} 37. Qxf4 {[%emt 0:00:26]} Qxc6 {[%emt 0:00:01]} 38. Qd6 {[%emt 0:00:12]} Qc3 {[%emt 0:00:12]} 39. Rb3 {[%emt 0:00:13]} Qc1+ {[%emt 0:00:05]} 40. Rd1 {[%emt 0:00:01]} Qc2 {[%emt 0:00:12]} 41. Rd2 {[%emt 0:00:07]} Qc1+ {[%emt 0:00:24]} 42. Rd1 {[%emt 0:00:01]} Qc2 {[%emt 0:00:15]} 43. Qd2 {[%emt 0:00:11]} Qc6 {[%emt 0:00:05]} 44. Qd5 {[%emt 0:00:06]} Qc2 {[%emt 0:00:08]} 45. Qd2 {[%emt 0:00:34]} Qc6 {[%emt 0:00:04]} 46. b5 {[%emt 0:00:05]} Qa8 {[%emt 0:00:02]} 47. Qd5 {[%emt 0:00:16]} Qxa2 {[%emt 0:00:03]} 48. Rc3 {[%emt 0:00:16]} Qe2 {[%emt 0:00:26]} 49. Qd2 {[%emt 0:00:09]} Qxb5 {[%emt 0:00:07]} 50. Qd7 {[%emt 0:00:02]} Qe5 {[%emt 0:00:40]} 51. Rd5 {[%emt 0:00:15]} Qxc3 {[%emt 0:00:00]} 52. Qxe8+ {[%emt 0:00:01]} Kg7 {[%emt 0:00:00]} 53. Qe5+ {[%emt 0:00:08]} Qxe5 {[%emt 0:00:00]} 54. Rxe5 {[%emt 0:00:01]} e3 {[%emt 0:00:00]} 55. Kg2 {[%emt 0:00:07]} Kf6 {[%emt 0:00:00]} 56. Re8 {[%emt 0:00:08]} Kg5 {[%emt 0:00:21]} 57. Kg3 {[%emt 0:00:27]} f5 {[%emt 0:00:08]} 58. h4+ {[%emt 0:00:19]} Kf6 {[%emt 0:00:02]} 59. gxf5 {[%emt 0:00:12]} gxf5 {[%emt 0:00:05]} 60. Kf4 {[%emt 0:00:08]} Bd4 {[%emt 0:00:36]} 61. Kf3 {[%emt 0:00:09]} Kg6 {[%emt 0:00:17]} 62. Rd8 {[%emt 0:00:07]} Bf6 {[%emt 0:00:11]} 63. Rd6 {[%emt 0:00:08]} Kg7 {[%emt 0:00:06]} 64. h5 {[%emt 0:00:16]} Bg5 {[%emt 0:00:22]} 65. Ra6 {[%emt 0:00:12]} h6 {[%emt 0:00:03]} 66. Rg6+ {[%emt 0:00:12]} Kf7 {[%emt 0:00:04]} 67. Ra6 {[%emt 0:00:01]} Kg7 {[%emt 0:00:00]} 1/2-1/2

[Event "Asian Amateur Rapid 2024"]
[Site "Al Ain"]
[Date "2024.12.15"]
[Round "4.14"]
[White "Sharma Pankaj"]
[Black "Al Balushi, Salim"]
[Result "1-0"]
[ECO "A37"]
[WhiteElo "1861"]
[BlackElo "1612"]
[Annotator "NA COMBH"]
[PlyCount "75"]
[EventDate "2024.12.15"]
[EventType "swiss"]
[EventCountry "UAE"]
[SourceTitle "playchess.com"]
[Source "ChessBase"]
[SourceQuality "1"]
[TimeControl "900+10"]

1. c4 {[%emt 0:00:01]} c5 {[%emt 0:00:08]} 2. Nf3 {[%emt 0:00:01]} Nc6 {[%emt 0:00:06]} 3. g3 {[%emt 0:00:02]} e5 {[%emt 0:00:04]} 4. Bg2 {[%emt 0:00:04]} g6 {[%emt 0:00:17]} 5. Nc3 {[%emt 0:00:02]} Bg7 {[%emt 0:00:08]} 6. O-O {[%emt 0:00:02]} Nge7 {[%emt 0:00:09]} 7. Ne1 {[%emt 0:00:14]} O-O {[%emt 0:00:18]} 8. Nc2 {[%emt 0:00:01]} d6 {[%emt 0:00:09] A37: Symmetrical English vs ...g6: 4 Bg2 Bg7 5 Nf3.} 9. Rb1 {[%emt 0:00:06]} Be6 {[%emt 0:00:12]} 10. d3 {[%emt 0:00:02]} a5 {[%emt 0:00:45]} 11. Ne3 {[%emt 0:00:02]} Qd7 {[%emt 0:00:19]} 12. Ned5 {[%emt 0:00:02]} Rab8 {[%emt 0:01:42]} 13. a3 {[%emt 0:00:29]} Bh3 {[%emt 0:13:03] 13...Bh3 is better than 13...b6.} 14. b4 {[%emt 0:00:48]} Bxg2 {[%emt 0:00:00]} 15. Kxg2 {[%emt 0:00:03]} b6 $146 {[%emt 0:00:00]} ({Predecessor:} 15... axb4 16. axb4 Nxd5 17. Nxd5 cxb4 18. Nxb4 b5 19. Nxc6 Qxc6+ 20. Kg1 bxc4 21. Rxb8 Rxb8 22. dxc4 {0-1 Mnatsakanyan,A (1918)-Shilon Rahav,E (2103) EU-ch U12 Prague 2024 (3)}) 16. Bh6 {[%emt 0:00:16]} axb4 {[%emt 0:00:00]} 17. Bxg7 {[%emt 0:00:14]} Kxg7 {[%emt 0:00:00]} 18. axb4 {[%emt 0:00:02]} Nd4 {[%emt 0:00:00]} 19. e3 {[%emt 0:00:26]} Ne6 {[%emt 0:00:00]} 20. Rb3 {[%emt 0:03:14]} Ng5 {[%emt 0:00:00]} 21. f3 {[%emt 0:00:19]} Qh3+ {[%emt 0:01:20]} 22. Kg1 {[%emt 0:00:22]} Nf5 {[%emt 0:00:00]} 23. Qe2 {[%emt 0:00:35]} b5 {[%emt 0:00:00]} 24. Nxb5 {[%emt 0:00:52]} cxb4 {[%emt 0:00:00]} 25. Qg2 {[%emt 0:00:29]} Qh6 {[%emt 0:00:00]} 26. Rfb1 {[%emt 0:02:52]} Nh3+ {[%emt 0:00:00]} 27. Kh1 {[%emt 0:00:01]} Ng5 {[%emt 0:00:00]} 28. Rxb4 {[%emt 0:00:17]} Ne6 {[%emt 0:00:00]} 29. Nxd6 {[%emt 0:00:32]} Rxb4 {[%emt 0:00:00]} 30. Nxf5+ {[%emt 0:00:02]} gxf5 {[%emt 0:00:01]} 31. Rxb4 {[%emt 0:00:16]} Ra8 {[%emt 0:00:04]} 32. Rb1 {[%emt 0:00:08]} Ra3 {[%emt 0:00:04]} 33. Qb2 {[%emt 0:00:07]} Rxd3 {[%emt 0:01:09]} 34. Qxe5+ {[%emt 0:00:04]} Kg6 {[%emt 0:00:41]} 35. Qf6+ {[%emt 0:00:18]} Kh5 {[%emt 0:00:04]} 36. Qxf5+ {[%emt 0:00:16]} Qg5 {[%emt 0:00:04]} 37. Qxh7+ {[%emt 0:00:14]} Qh6 {[%emt 0:00:05] Check Result:#2} 38. Qf5+ {[%emt 0:00:48]} 1-0

[Event "Asian Amateur Rapid 2024"]
[Site "Al Ain"]
[Date "2024.12.15"]
[Round "4.15"]
[White "Rashed Abubaker, Alhemeiri"]
[Black "Atharv Bansal"]
[Result "0-1"]
[ECO "B23"]
[WhiteElo "1861"]
[BlackElo "1896"]
[Annotator "NA COMBH"]
[PlyCount "84"]
[EventDate "2024.12.15"]
[EventType "swiss"]
[EventCountry "UAE"]
[SourceTitle "playchess.com"]
[Source "ChessBase"]
[SourceQuality "1"]
[TimeControl "900+10"]

1. e4 {[%emt 0:00:02]} c5 {[%emt 0:00:02]} 2. Nc3 {[%emt 0:00:03]} Nc6 {[%emt 0:00:02]} 3. f4 {[%emt 0:00:02]} e6 {[%emt 0:00:02]} 4. Nf3 {[%emt 0:00:02]} Nge7 {[%emt 0:00:04]} 5. a3 {[%emt 0:02:12]} d5 {[%emt 0:00:08]} 6. b4 {[%emt 0:01:31] B23: Closed Sicilian: Lines without g3.} cxb4 {[%emt 0:01:50]} 7. axb4 {[%emt 0:00:02]} dxe4 {[%emt 0:00:21]} 8. Nxe4 {[%emt 0:00:12]} Nf5 {[%emt 0:00:59]} 9. b5 {[%emt 0:01:21]} Ncd4 {[%emt 0:00:26]} 10. Ne5 {[%emt 0:00:17]} Be7 {[%emt 0:05:06]} 11. c3 {[%emt 0:01:09]} Qd5 {[%emt 0:08:00]} 12. Nf2 {[%emt 0:02:28]} Nb3 {[%emt 0:00:00]} 13. Bc4 {[%emt 0:00:36]} Qxg2 {[%emt 0:00:00]} 14. Qxb3 {[%emt 0:00:32]} Bh4 {[%emt 0:00:00]} 15. Rf1 {[%emt 0:00:45]} O-O {[%emt 0:00:00]} 16. Qc2 {[%emt 0:00:53]} f6 {[%emt 0:00:00]} 17. Neg4 {[%emt 0:01:35]} Qxg4 {[%emt 0:00:00]} 18. Qe4 {[%emt 0:01:02]} Kh8 {[%emt 0:00:00]} 19. Be2 {[%emt 0:01:28]} Qg6 {[%emt 0:00:00]} 20. Qd3 {[%emt 0:00:47]} Qe8 {[%emt 0:00:42]} 21. b6 {[%emt 0:00:01]} a6 {[%emt 0:00:19]} 22. Qf3 {[%emt 0:00:22]} Bd7 {[%emt 0:00:26]} 23. Ba3 {[%emt 0:01:17]} Bc6 {[%emt 0:00:03]} 24. Qg4 {[%emt 0:00:03]} Rf7 {[%emt 0:00:04]} 25. Bd3 {[%emt 0:00:23]} Rd8 {[%emt 0:00:04]} 26. Bc2 {[%emt 0:00:07]} Rfd7 {[%emt 0:00:04]} 27. O-O-O {[%emt 0:00:02]} Bxf2 {[%emt 0:00:26]} 28. Rxf2 {[%emt 0:00:03]} Rd5 {[%emt 0:00:02]} 29. Rg1 {[%emt 0:00:19]} Qd7 {[%emt 0:00:07]} 30. Qe2 {[%emt 0:00:22]} Ra5 {[%emt 0:00:18]} 31. Bb2 {[%emt 0:00:00]} Bb5 {[%emt 0:00:15]} 32. Qg4 {[%emt 0:00:10]} Bd3 {[%emt 0:00:10]} 33. Rfg2 {[%emt 0:00:15]} Bxc2 {[%emt 0:00:03]} 34. Kxc2 {[%emt 0:00:01]} Qd3+ {[%emt 0:00:05]} 35. Kc1 {[%emt 0:00:01]} Rb5 {[%emt 0:00:03]} 36. Qh5 {[%emt 0:00:32]} a5 {[%emt 0:00:11]} 37. Qf7 {[%emt 0:00:02]} Rg8 {[%emt 0:00:22]} 38. Qxe6 {[%emt 0:00:01]} a4 $19 {[%emt 0:00:05]} 39. c4 {[%emt 0:00:21]} Rc5 {[%emt 0:00:15]} 40. Rg3 {[%emt 0:00:29]} g6 41. Rxg6 {[%emt 0:00:00]} Rxc4+ {[%emt 0:00:10]} 42. Kd1 {[%emt 0:00:00] Check Result:#1} Re4 {[%emt 0:00:42]} 0-1